Cogmind - Beta 11.1 @@@ ROGUE MODE // 2022.08.09 @ 14:42:03 Player: jam Result: Destroyed by S-10 Pest with Light Assault Rifle Performance ------------- Evolutions (1) 500 Regions Visited (2) 400 Robots Destroyed (28) 140 Value Destroyed (458) 458 Prototype IDs (3) 60 Alien Tech Used (0) 0 Bonus (0) 0 TOTAL SCORE: 1558 Bonus ------- None Cogmind --------- Core Integrity 0/400 Matter 232/300 Energy 98/100 System Corruption 0% Temperature Cool (0) Movement Core (50) Location -9/Materials Parts ------- > --- POWER (1) -------- (None) > --- PROPULSION (2) --- (None) > --- UTILITY (3) ------ (None) > --- WEAPON (3) ------- (None) > --- INVENTORY (5) ---- Large Storage Unit Medium Matter Pod (100) Signal Interpreter Peak State ------------ > --- POWER ------------ Ion Engine > --- PROPULSION ------- Improved Treads Improved Treads > --- UTILITY ---------- Large Storage Unit Seismic Detector Shield Generator > --- WEAPON ----------- Assault Rifle Light Cannon Light Cannon > --- INVENTORY -------- Light Ion Engine Light Treads Medium Matter Pod Signal Interpreter EM Pulse Gun Datajack [Rating: 12] Favorites ----------- Power Ion Engine Engine Ion Engine Propulsion Light Treads Treads Light Treads Utility Seismic Detector Device Seismic Detector Storage Small Storage Unit Processor Transport Network Coupler Weapon Assault Rifle Energy Gun EM Pulse Gun Ballistic Gun Assault Rifle Ballistic Cannon Light Cannon Special Melee Weapon Datajack Build | -11 -10 -9 ------- Run | Scr Mat Mat Slots Evolved 2 | . . 2 Power . | . . . Propulsion . | . . . Utility 1 | . . 1 Weapon 1 | . . 1 Parts Attached 31 | 8 16 7 Power 5 | 1 3 1 Engine 5 | 1 3 1 Core . | . . . Reactor . | . . . Propulsion 11 | 2 8 1 Treads 11 | 2 8 1 Leg . | . . . Wheel . | . . . Hover . | . . . Flight . | . . . Utility 5 | 2 1 2 Device 2 | 1 . 1 Storage 2 | 1 1 . Processor 1 | . . 1 Hackware . | . . . Protection . | . . . Artifact . | . . . Weapon 10 | 3 4 3 Energy Gun 2 | 1 . 1 Energy Cannon . | . . . Ballistic Gun 3 | 2 . 1 Ballistic Cannon 4 | . 4 . Launcher . | . . . Special Weapon . | . . . Impact Weapon . | . . . Slashing Weapon . | . . . Piercing Weapon . | . . . Special Melee Weapon 1 | . . 1 Unidentified Prototypes . | . . . Parts Lost 12 | . . 12 Power 2 | . . 2 Propulsion 3 | . . 3 Utility 2 | . . 2 Weapon 5 | . . 5 Highest Loss Streak 12 | . . 12 To Critical Strikes . | . . . Average Slot Usage (%) 94 | . 97 86 Engine 11 | . 12 9 Treads 25 | . 27 19 Device 14 | . 14 16 Storage 13 | . 14 10 Ballistic Gun 13 | . 14 9 Ballistic Cannon 14 | . 13 18 Naked Turns 13 | . . 13 Heaviest Build 36 | 15 32 36 Greatest Support 46 | 40 46 46 Greatest Overweight (x) 6 | 1 5 6 Average Overweight (x) . | . . . Largest Inventory Capacity 15 | 8 15 15 Average Capacity 10 | 7 9 14 Most Carried 8 | 5 8 8 Average Carried 6 | 3 7 5 Final Capacity 15 | 8 15 5 Final Carried 8 | 5 8 3 Class Distribution -------------------- 85% | Mutant 11% | Tank Dominant Class ---------------- Mutant | -10/Materials Tank | -9/Materials Resources | -11 -10 -9 ----------- Run | Scr Mat Mat Matter Collected 1063 | 418 381 264 Remotely . | . . . Salvage Created 915 | 172 496 247 Parts 65 | 17 25 23 Haulers Intercepted 3 | . 2 1 Recyclers Shooed 2 | . 2 . Parts Field Recycled . | . . . Retrieved Matter . | . . . Parts Self-Destructed . | . . . Prevented . | . . . Kills | -11 -10 -9 ------- Run | Scr Mat Mat Combat Hostiles Destroyed 11 | . 6 5 Guns 4 | . 2 2 Cannons 7 | . 4 3 Classes Destroyed 9 | 3 5 1 Worker 5 | 2 3 . Builder 2 | . 1 1 Tunneler 2 | 2 . . Hauler 3 | . 2 1 Recycler 3 | 1 2 . Watcher 2 | . 1 1 Swarmer 2 | . 2 . Grunt 8 | . 4 4 Sentry 1 | . . 1 Best Kill Streak 5 | 1 2 5 Combat Bots Only 3 | . 2 3 Max Kills in Single Turn 2 | 1 1 2 Gunslinging . | . . . Exploded . | . . . Melee . | . . . Uniques/NPCs Destroyed . | . . . Combat | -11 -10 -9 -------- Run | Scr Mat Mat Damage Taken 1791 | . 524 1267 Core 478 | . 74 404 Absorbed by Shields 103 | . . 103 Regen/Repaired (Parts) 11 | . 11 . Core Remaining (%) 85 | 100 70 . Volleys Fired 87 | 13 55 19 Largest 3 | 2 2 3 Hottest 95 | 60 70 95 Shots Fired 185 | 24 110 51 Gun 98 | 24 53 21 Cannon 87 | . 57 30 Launcher . | . . . Special . | . . . Kinetic 180 | 21 110 49 Thermal . | . . . Explosive . | . . . Electromagnetic 5 | 3 . 2 Robot Hit Streak 9 | 6 5 9 Robot Miss Streak 9 | 4 9 4 Penetration Max . | . . . Secondary Targets . | . . . Shots Hit Robots 97 | 14 54 29 Core Hits 37 | 6 19 12 Critical Kills 1 | . . 1 Critical Parts Destroyed . | . . . Critical Strikes 2 | . 1 1 Destroy 1 | . . 1 Blast 1 | . 1 . Melee Attacks 1 | . . 1 Impact . | . . . Slashing . | . . . Piercing . | . . . Sneak Attacks . | . . . Combat Hostiles . | . . . Follow-up Attacks . | . . . Damage Inflicted 1284 | 175 653 456 Guns 570 | 175 241 154 Cannons 708 | . 406 302 Explosions . | . . . Melee . | . . . Ramming 6 | . 6 . Kinetic 1230 | 151 647 432 Thermal . | . . . Explosive . | . . . Electromagnetic 48 | 24 . 24 Impact . | . . . Slashing . | . . . Piercing . | . . . Highest Corruption . | . . . Average Corruption . | . . . Corruption Purged . | . . . Corruption Blocked . | . . . Overload Shots . | . . . Overflow Damage 6 | . 6 . Projectiles 6 | . 6 . Explosions . | . . . Melee . | . . . Knockbacks 12 | . 5 7 Impact . | . . . Kinetic 11 | . 5 6 Secondary 1 | . . 1 Self-Inflicted Damage . | . . . Shots . | . . . Rammed 1 | . 1 . Targets Rammed 1 | . 1 . Kicked . | . . . Crushed . | . . . Highest Temperature 167 | . 84 167 Average Temperature 39 | . 21 61 Received Heat Transfer 723 | . 195 528 Siege Activations . | . . . Robots Corrupted . | . . . Combat Hostiles . | . . . Parts Fried . | . . . Impact Corruptions . | . . . Robots Melted . | . . . Combat Hostiles . | . . . Parts Melted . | . . . Heat Transferred . | . . . Parts Sabotaged . | . . . Parts Stolen . | . . . Parts Stripped . | . . . Power Chain Reactions . | . . . Missiles Intercepted . | . . . Alert | -11 -10 -9 ------- Run | Scr Mat Mat Peak Influence 169 | 25 126 169 Initial 2 | . . 2 Average 31 | 7 29 65 Maximum Alert Level . | . . . Low Security (%) 100 | 100 100 100 Level 1 . | . . . Level 2 . | . . . Level 3 . | . . . Level 4 . | . . . Level 5 . | . . . High Security . | . . . Max Security . | . . . Squads Dispatched 1 | . 1 . Investigation 1 | . 1 . Extermination . | . . . Reinforcement . | . . . Assault . | . . . Garrison . | . . . Intercept . | . . . Searches Triggered . | . . . Construction Impeded . | . . . Haulers Reinforced . | . . . Active Scanning Responses . | . . . Cargo Convoy Interrupts . | . . . Stealth | -11 -10 -9 --------- Run | Scr Mat Mat Distress Signals 3 | . . 3 Communications Jammed . | . . . Distress Signals . | . . . Times Spotted 32 | . 16 16 Peak Tracking Total 8 | . 4 8 Tactical Retreats 1 | . . 1 Traps | -11 -10 -9 ------- Run | Scr Mat Mat Traps Triggered 3 | . 3 . Indirectly . | . . . Trap Hack Attempts . | . . . Triggered . | . . . Disarmed . | . . . Reprogrammed . | . . . Reused . | . . . Traps Extracted . | . . . Installed . | . . . Triggered . | . . . Machines | -11 -10 -9 ---------- Run | Scr Mat Mat Machines Disabled 1 | . . 1 Max in Single Turn 1 | . . 1 Machines Sabotaged . | . . . Garrisons Compromised . | . . . Overloaded Fab Kills . | . . . Hacking | -11 -10 -9 --------- Run | Scr Mat Mat Machines Accessed 8 | . 8 . Terminals 6 | . 6 . Fabricators . | . . . Repair Stations 1 | . 1 . Recycling Units 1 | . 1 . Scanalyzers . | . . . Garrison Access . | . . . Total Hacks 38 | . 38 . Successful 24 | . 24 . Failed 13 | . 13 . Catastrophic 1 | . 1 . Database Lockouts 1 | . 1 . Manual . | . . . Terminals 31 | . 31 . Fabricators . | . . . Repair Stations 2 | . 2 . Recycling Units 5 | . 5 . Scanalyzers . | . . . Garrison Access . | . . . Terminal Hacks 18 | . 18 . Record 12 | . 12 . Prototype ID Bank 2 | . 2 . Unreport Threat 1 | . 1 . Locate Traps 1 | . 1 . Maintenance Status 2 | . 2 . Fabricator Hacks . | . . . Repair Station Hacks 2 | . 2 . Scan Component 1 | . 1 . Repair 1 | . 1 . Recycling Unit Hacks 4 | . 4 . Recycle Component 1 | . 1 . Process 1 | . 1 . Report Inventory 1 | . 1 . Retrieve Matter 1 | . 1 . Scanalyzer . | . . . Garrison Access Hacks . | . . . Unauthorized Hacks . | . . . Terminals . | . . . Fabricators . | . . . Repair Stations . | . . . Recycling Units . | . . . Scanalyzers . | . . . Garrison Access . | . . . Data Cores Recovered . | . . . Used . | . . . Hacking Detections 6 | . 6 . Full Trace Events 4 | . 4 . Feedback Events . | . . . Feedback Blocked . | . . . Robot Schematics Acquired . | . . . Robots Built . | . . . Authchips . | . . . Time . | . . . Total Robot Build Rating . | . . . Part Schematics Acquired . | . . . Parts Built . | . . . Authchips . | . . . Time . | . . . Total Part Build Rating . | . . . Parts Repaired 1 | . 1 . Time 26 | . 26 . Parts Recycled 1 | . 1 . Recycled Matter 138 | . 138 . Retrieved Matter 138 | . 138 . Retrieved Components . | . . . Parts Scanalyzed . | . . . Part Schematics Acquired . | . . . Parts Damaged . | . . . Bothacking | -11 -10 -9 ------------ Run | Scr Mat Mat Used RIF Installer . | . . . Robots Hacked 1 | . . 1 Non-combat . | . . . Combat 1 | . . 1 Robot Hacks Applied 1 | . . 1 parse_system 1 | . . 1 Relay Couplers Released . | . . . Fabnet Peak Effective % . | . . . Robots Rewired . | . . . Allies Hacked . | . . . Hacks Repelled . | . . . Allies | -11 -10 -9 -------- Run | Scr Mat Mat Total Allies . | . . . Largest Group . | . . . Highest-Rated Group . | . . . Highest-Rated Ally . | . . . Total Orders . | . . . Ally Attacks . | . . . Total Damage . | . . . Kills . | . . . Allies Corrupted . | . . . Allies Melted . | . . . Intel | -11 -10 -9 ------- Run | Scr Mat Mat Robot Analysis Total . | . . . Derelict Logs Recovered . | . . . Drone Launches . | . . . Drone Recoveries . | . . . Exploration | -11 -10 -9 ------------- Run | Scr Mat Mat Turns Passed 2017 | 417 1245 355 Spaces Moved 1021 | 233 599 189 Core 51 | 18 3 30 Treads 970 | 215 596 159 Legs . | . . . Wheels . | . . . Hover . | . . . Flight . | . . . Fastest Speed 50 | 50 160 50 Average Speed 157 | 153 160 150 Slowest Speed 350 | 160 300 350 Overloaded Moves . | . . . Propulsion Burnouts . | . . . Robots Hopped . | . . . Cave-ins Triggered . | . . . Exploration Rate (%) 34 | 12 70 20 Regions Visited 2 Branch Regions . Pre-discovered Areas . | . . . Known Exits Taken . | . . . Unknown Exits Taken 2 | 1 1 . Scrap Searched . | . . . Spaces Dug . | . . . Terrain Destroyed . | . . . Melee . | . . . Projectile . | . . . AOE . | . . . Terrain Rammed . | . . . Walls Destroyed . | . . . Machines Disabled . | . . . Actions | -11 -10 -9 --------- Run | Scr Mat Mat Total 1271 | 270 780 221 Wait 65 | . 65 . Move 1019 | 232 598 189 Hop . | . . . Pick Up 43 | 14 27 2 Fast Attach . | . . . Attach 30 | 8 15 7 Detach 6 | 1 3 2 Swap 1 | . 1 . Drop 18 | 2 15 1 Fire 87 | 13 55 19 Melee 1 | . . 1 Ram . | . . . Kick . | . . . Crush 1 | . 1 . Escape Stasis . | . . . Rewire . | . . . Trap . | . . . Miscellaneous . | . . . Route ------- -11/Scrapyard -10/Materials (discovered 2 exits: [*Mat] / [*Min]) -9/Materials History --------- Turn | Location | Event 29 | -11/Scrapyard | Discovered new exit (range 15) 418 | -11/Scrapyard | Entered Materials 419 | -10/Materials | Build established: Mutant 661 | -10/Materials | Discovered new exit (range 9) 829 | -10/Materials | Central database locked down 1177 | -10/Materials | Discovered new exit (range 12) 1221 | -10/Materials | Repaired Ion Engine 1663 | -10/Materials | Entered another Materials area 1663 | -9/Materials | Evolved 2 slots: Utility x1, Weapon x1 1998 | -9/Materials | Core integrity fell below 50% 2004 | -9/Materials | Core integrity fell below 20% 2018 | -9/Materials | Destroyed by S-10 Pest with Light Assault Rifle Last Messages --------------- G-34 Mercenary destroyed. Assault Rifle destroyed. Imp. Treads destroyed. K-01 Serf collects debris. Bump into an enemy to attack with the active melee weapon. Even while active, melee weapons do not fire together with ranged weapons in the same volley. Acquired 30 matter. W-16 Scout sends out distress signal. K-01 Serf collects debris. Critical hit (Burn: +37). Acquired 4 matter. Lgt. Ion Engine destroyed. Jacked G-34 Mercenary... >>parse_system Reading system data... Lgt. Treads destroyed. R-06 Scavenger collects Aluminum Leg. Datajack destroyed. Critical hit (Burn: +37). Map ----- +----------------------------------------------------+ | ???????????????????????????????????????# ## | | ???????????????????????????????????????# ## """ | | ???????????????????????????????????????? ## """ | | ???????????????????????????????????????? ## ???? | | ???????????????????????????????????????? ## ???? | | ???????????????????????????????????????? #####?### | | ???????????????????????????????????????? ??????# | | ???????????????????????????????????????? ??????# " | | ???????????????????????????????????????? ??????# " | | ???????????????????????????????????????????????# " | | ???????????????????????????????????????????????# | | ???????????????????????????????????????????????### | | ??????????????????????????????????????????######## | | ????????????????????????????????????????? | | ????????????????????????????????????????? | | ????????????????????????????????????????? | | ??????????????????????????????????????????######## | | ???????????????????????????????????????????????### | | ???????????????????????????????????????????????# | | ?????????????????????########??????????????????# | | ?????????????????????# """ #??????????????????# | | ?????????????????????# "R" #??????????????????# | | ?????????????????????# " " #??????????????????# | | ?????????????????????+ #???+#?????????????# | | ?????????????????????# #??# #?????????????# | | ?????????????????????#ws @ #??# #?????????????# | | ?????????????????????#/######??# #?????????????# | | ?????????????????????# #???????# #????????????## | | ?????????????????????# #???????# #?????######## | | ?????????????????????# #??????## ##????# | | ?????????????????????# ######## ###### | | ?????????????????????# | | ?????????????????????#+#####+## ####### ##### | | ????????????????????? ??? ##/######## #???###+ | | ????????????????????? ??? # # #??????? | | ????????????????????# ? # # #??????? | | ????????????????????# ? # # ##?????? | | ????????????????????########### + +?????? | | ??????????????????????????????# # ##?????? | | ????????????????????????? " % # #??????? | | ???????????????????????? # # #??????? | | ????????????????????????####### # #??????? | | ??????????????????????????????###########/#??????? | | ???????????????????????????????????????? ??????? | | ???????????????????????????????????????? ??????? | | ???????????????????????????????????????? ??????? | | ???????????????????????????????????????? ??????? | | ???????????????????????????????????????? ??????? | | ???????????????????????????????????????? ??????? | | ???????????????????????????????????????? ??????? | +----------------------------------------------------+ Best States ------------- Heat Dissipation 28 Energy Generation 10 Energy Capacity 250 Matter Stores 300 Matter Capacity 300 Sight Range 16 Terrain Scan Density 10 Evasion (%) 50 Recoil Reduction 2 Item Schematics ----------------- None Robot Schematics ------------------ None Fabricated ------------ Nothing Alien Tech Used ----------------- None Achievements -------------- Everything Is Under Control Librarian Challenges ------------ None Game ------ Seed StasisTransportDoomcannon Manual? 0 Play Time 00:28:05 Cumulative 10.9 hours Start 2022.08.09 @ 14:13:14 End 2022.08.09 @ 14:42:03 Sessions 1 Manual Loads 0 Difficulty Rogue Special Mode None Game No. 15 Rogue 11 Adventurer 4 Explorer 0 Win Type - Total 0 Types 0/0/0/0/0/0/0/0/0 Lore% 10 Gallery% 19 Achievement% 13 Wizard Run 0 Options --------- ASCII 0 Keyboard 0 Movement Arrows Keybinds 0 Fullscreen 1 Font 36/Smallcaps Map View 76x50 Tactical HUD 0 Map Filters NONE Filters NONE Steam 1 RUN: e59b56ba-fc5f-400c-85fd-bb59b8c3cd37